bitfinex/quotes_BTCUSD_20250408
["timestamp","ask_amount","ask_price","bid_price","bid_amount"]
[1744131422977,0.02438658,77412.0,77411.0,0.0010005]
[1744131423113,0.02838658,77412.0,77411.0,0.0010005]
[1744131423521,0.01546958,77412.0,77411.0,0.0010005]
[1744131423747,0.01146958,77412.0,77411.0,0.0010005]
[1744131423952,0.02838658,77412.0,77411.0,0.0010005]
[1744131424356,0.01546958,77412.0,77411.0,5e-07]
[1744131424565,0.27382658,77412.0,77411.0,5e-07]
[1744131424763,0.28674358,77412.0,77411.0,5e-07]
[1744131424959,0.28674358,77412.0,77411.0,0.0010005]
[1744131425535,0.28674358,77412.0,77411.0,5e-07]
[1744131425830,0.28874358,77412.0,77411.0,5e-07]
[1744131426223,0.62874358,77412.0,77411.0,5e-07]
[1744131426601,0.271313,77401.0,77400.0,0.08568]
[1744131427145,0.0234526,77401.0,77400.0,0.08568]
[1744131427289,0.0363716,77401.0,77400.0,0.08568]
[1744131427492,0.0234526,77401.0,77400.0,0.08568]
[1744131427693,0.0363716,77401.0,77400.0,0.08568]
[1744131427905,0.03504758,77401.0,77400.0,0.08568]
[1744131428104,0.01159498,77401.0,77400.0,0.06921391]
[1744131428303,0.02451398,77401.0,77400.0,0.07021391]
[1744131428711,0.02451398,77401.0,77400.0,0.07121391]
[1744131429493,0.258438,77388.0,77386.0,0.0001681]
[1744131429700,0.258434,77389.0,77386.0,0.0001681]
[1744131429820,0.59221526,77396.0,77387.0,0.12625864]
[1744131430025,0.01146958,77395.0,77390.0,0.012921]
[1744131430490,0.01146958,77395.0,77394.0,0.01292]
[1744131430691,0.01146958,77395.0,77394.0,0.13917864]
[1744131430894,0.01146958,77395.0,77394.0,0.15630344]
[1744131431101,0.0001254,77401.0,77400.0,0.28585685]
[1744131431270,0.0001254,77401.0,77400.0,0.38465564]
[1744131431472,0.0001254,77401.0,77400.0,0.39757464]
[1744131431683,0.012921,77390.0,77380.0,0.01277339]
[1744131431914,0.258402,77399.0,77393.0,0.258418]
[1744131432159,0.258399,77400.0,77394.0,0.001]
[1744131432535,0.271326,77398.0,77394.0,0.001]
[1744131432788,0.258398,77400.0,77394.0,0.272335]
[1744131432995,0.258402,77399.0,77394.0,0.001]
[1744131433217,0.258407,77398.0,77394.0,0.259415]
[1744131433439,0.001,77401.0,77395.0,0.258412]
[1744131433652,0.001,77401.0,77393.0,0.01334236]
[1744131433653,0.258415,77395.0,77393.0,0.00042136]
[1744131433830,0.01292,77394.0,77393.0,0.00042136]
[1744131434380,0.258416,77395.0,77393.0,0.00042136]
[1744131434587,0.01292,77394.0,77393.0,0.00042136]
[1744131434787,0.012919,77400.0,77393.0,0.12668]
[1744131434986,0.258405,77398.0,77393.0,0.00042136]
[1744131435185,0.258401,77399.0,77395.0,0.258412]
[1744131435386,0.258416,77395.0,77393.0,0.00042136]
[1744131435931,0.01292,77394.0,77393.0,0.00042136]
[1744131436719,0.35292,77394.0,77393.0,0.00042136]
[1744131436920,0.35392,77394.0,77393.0,0.00042136]
[1744131437532,0.39314282,77394.0,77393.0,0.00042136]
[1744131437792,0.35292,77394.0,77393.0,0.00042136]
[1744131437987,0.39212966,77394.0,77393.0,0.00042136]
[1744131438132,0.258488,77373.0,77368.0,0.27029636]
[1744131438335,0.012924,77373.0,77369.0,0.12625864]
[1744131438545,0.012924,77374.0,77369.0,0.12625864]
[1744131438889,0.012924,77373.0,77369.0,0.12625864]
[1744131439081,0.258483,77375.0,77370.0,0.27142]
[1744131439283,0.258483,77375.0,77371.0,0.12625864]
[1744131439482,0.001,77373.0,77371.0,0.12625864]
[1744131439621,0.012924,77375.0,77371.0,0.12625864]
[1744131439825,0.271412,77374.0,77371.0,0.12625864]
[1744131440073,0.012924,77370.0,77369.0,0.00986213]
[1744131440272,0.012924,77370.0,77363.0,0.2716129]
[1744131440487,0.012924,77372.0,77367.0,0.258507]
[1744131440655,0.228282,77383.0,77379.0,0.258467]
[1744131440853,0.22812958,77383.0,77379.0,0.27139]
[1744131441067,0.012921,77392.0,77386.0,0.012922]
[1744131441303,0.21536,77396.0,77393.0,0.012921]
[1744131441501,0.258415,77395.0,77392.0,0.258417]
[1744131441727,0.473771,77396.0,77392.0,0.258417]
[1744131441885,0.012921,77388.0,77382.0,0.258454]
[1744131442052,0.258435,77390.0,77387.0,0.39434057]
[1744131442254,0.008,77392.0,77387.0,0.40726257]
[1744131442458,0.008,77392.0,77391.0,0.012921]
[1744131442696,0.012919,77400.0,77392.0,0.271345]
[1744131442871,0.258419,77394.0,77392.0,0.12625864]
[1744131443070,0.271331,77396.0,77387.0,0.00964293]
[1744131443071,0.258427,77391.0,77387.0,0.26808293]
[1744131443494,0.271345,77392.0,77387.0,0.26808293]
[1744131443703,0.258422,77393.0,77388.0,0.012921]
[1744131443989,0.258417,77395.0,77390.0,0.012921]
[1744131444166,0.258378,77406.0,77396.0,0.271331]
[1744131444375,0.012919,77400.0,77396.0,0.12625864]
[1744131444569,0.258404,77398.0,77393.0,0.012921]
[1744131444849,0.01292,77398.0,77392.0,0.258423]
[1744131445060,0.258414,77395.0,77392.0,0.12625864]
[1744131445278,0.262414,77395.0,77392.0,0.12625864]
[1744131445417,0.271333,77396.0,77392.0,0.38468164]
[1744131445618,0.00642047,77397.0,77393.0,0.012921]
[1744131445947,0.00042047,77397.0,77396.0,0.271331]
[1744131446095,0.00442047,77397.0,77396.0,0.39758964]
[1744131446298,0.00442047,77397.0,77396.0,0.41213049]
[1744131447631,0.00442047,77397.0,77396.0,0.42528285]
[1744131448054,0.00142047,77397.0,77396.0,0.42728285]
[1744131448312,0.00642047,77397.0,77396.0,0.42728285]
[1744131448578,0.00542047,77397.0,77396.0,0.42528285]
[1744131448833,0.37117563,77425.0,77396.0,0.42528285]
[1744131448834,0.11285863,77425.0,77424.0,0.271232]
[1744131449118,0.11285863,77425.0,77424.0,0.39749064]
[1744131449595,0.11285863,77425.0,77424.0,0.41203149]
[1744131450062,0.0004,77429.0,77428.0,0.28575985]
[1744131450295,0.0004,77429.0,77428.0,0.41201849]
[1744131450805,0.0004,77429.0,77428.0,0.75201849]
[1744131451040,0.11285863,77440.0,77439.0,0.28572085]
[1744131451308,0.11285863,77440.0,77439.0,0.41197949]
[1744131452300,0.0003364,77443.0,77442.0,0.611169]
[1744131452301,3e-08,77443.0,77442.0,0.611169]
[1744131452504,0.0004,77459.0,77458.0,0.62565485]
[1744131452781,0.0004,77459.0,77458.0,0.96719349]
[1744131453019,0.0004,77459.0,77458.0,1.38309349]
[1744131453484,0.0004,77459.0,77458.0,1.16781349]
[1744131454208,0.00052624,77459.0,77458.0,1.16781349]
[1744131454467,0.00052624,77459.0,77458.0,0.837501]
[1744131454702,0.00152624,77459.0,77458.0,0.848501]
[1744131454946,4.4e-07,77462.0,77461.0,0.271103]
[1744131455181,4.4e-07,77462.0,77461.0,0.75190249]
[1744131455681,4.4e-07,77462.0,77461.0,0.41190249]
[1744131455924,4.4e-07,77462.0,77461.0,0.39736164]
[1744131456148,0.228545,77489.0,77478.0,0.012906]
[1744131456337,0.012906,77483.0,77474.0,0.012907]
[1744131456543,0.012906,77483.0,77473.0,0.012907]
[1744131456544,0.012906,77480.0,77473.0,0.012907]
[1744131456782,0.0133264,77483.0,77476.0,0.258141]
[1744131456783,0.271033,77482.0,77476.0,0.258141]
[1744131456991,0.271033,77482.0,77473.0,0.012907]
[1744131456992,0.258131,77480.0,77473.0,0.012907]
[1744131457195,0.012906,77479.0,77466.0,0.012908]
[1744131457349,0.258136,77479.0,77473.0,0.271059]
[1744131457550,0.258142,77477.0,77471.0,0.258159]
[1744131457712,0.012907,77473.0,77472.0,0.12625864]
[1744131457910,0.012907,77476.0,77472.0,0.12625864]
[1744131458118,0.013906,77480.0,77472.0,0.12625864]
[1744131458380,0.013906,77480.0,77473.0,0.012907]
[1744131458581,0.012907,77477.0,77472.0,0.12625864]
[1744131458784,0.001,77477.0,77475.0,0.258146]
[1744131458912,0.001,77477.0,77473.0,0.271054]
[1744131459130,0.001,77480.0,77474.0,0.012907]
[1744131459371,0.258137,77479.0,77474.0,0.271056]
[1744131459602,0.258137,77479.0,77473.0,0.271054]
[1744131459603,0.258145,77476.0,77472.0,0.12625864]
[1744131459840,0.271061,77473.0,77472.0,0.12625864]
[1744131460055,0.012907,77477.0,77472.0,0.12625864]
[1744131460278,0.002,77480.0,77476.0,0.258144]
[1744131460509,0.258142,77477.0,77472.0,0.12625864]
[1744131460729,0.012906,77478.0,77473.0,0.258151]
[1744131461148,0.002,77480.0,77463.0,0.01454085]
[1744131461479,0.258153,77474.0,77469.0,0.258167]
[1744131461680,0.012906,77482.0,77473.0,0.012907]
[1744131461843,0.002,77478.0,77475.0,0.012907]
[1744131462249,0.260138,77478.0,77474.0,0.012907]
[1744131462500,0.258135,77479.0,77475.0,0.258146]
[1744131462662,0.012906,77481.0,77476.0,0.258142]
[1744131462870,0.258135,77479.0,77474.0,0.271056]
[1744131463096,0.258135,77479.0,77475.0,0.258145]
[1744131463282,0.271037,77480.0,77476.0,0.258141]
[1744131463492,0.0004204,77483.0,77481.0,0.258124]
[1744131463927,0.0004204,77483.0,77481.0,0.27103]
[1744131464264,0.0004204,77483.0,77482.0,0.012906]
[1744131465717,0.0044204,77483.0,77482.0,0.3769588]
[1744131466117,4e-07,77489.0,77488.0,0.611009]
[1744131466298,4e-07,77489.0,77488.0,0.62554985]
[1744131466543,4.4e-07,77490.0,77489.0,0.36744585]
[1744131466754,4.4e-07,77490.0,77489.0,0.78334585]
[1744131466969,0.000336,77509.0,77502.0,0.28549985]
[1744131467193,0.000336,77509.0,77502.0,0.62549985]
[1744131467393,0.473124,77531.0,77525.0,0.257978]
[1744131467394,0.16232027,77531.0,77525.0,0.257978]
[1744131467526,0.257948,77535.0,77531.0,0.257961]
[1744131467721,0.000336,77537.0,77532.0,0.257956]
[1744131467922,0.257952,77534.0,77529.0,0.012898]
[1744131468147,0.257955,77533.0,77529.0,0.26778469]
[1744131468358,0.257962,77531.0,77529.0,0.00981969]
[1744131468568,0.257981,77526.0,77520.0,0.257995]
[1744131468806,0.257985,77524.0,77517.0,0.270907]
[1744131469009,0.012899,77521.0,77515.0,0.258012]
[1744131469214,0.270897,77520.0,77510.0,0.270932]
[1744131469466,0.257988,77523.0,77516.0,0.258008]
[1744131469640,0.257995,77521.0,77516.0,0.270908]
[1744131469781,0.012899,77523.0,77517.0,0.258007]
[1744131469987,0.270873,77527.0,77520.0,0.012899]
[1744131470249,0.257995,77521.0,77516.0,0.02240883]
[1744131470449,0.257982,77525.0,77520.0,0.257996]
[1744131470823,0.274876,77526.0,77521.0,0.257993]
[1744131471029,0.27087,77528.0,77523.0,0.012899]
[1744131471227,0.004,77527.0,77523.0,0.270886]
[1744131471426,0.261975,77527.0,77523.0,0.270886]
[1744131471642,0.257998,77520.0,77515.0,0.270913]
[1744131471831,0.270905,77518.0,77512.0,0.270925]
[1744131472032,0.258035,77509.0,77507.0,0.01454085]
[1744131472209,0.012901,77511.0,77504.0,0.4159]
[1744131472409,0.012901,77511.0,77506.0,0.270946]
[1744131472732,0.257999,77520.0,77515.0,0.0129]
[1744131472932,0.004,77526.0,77525.0,0.012899]
[1744131473134,0.004,77526.0,77525.0,0.27088]
[1744131473468,0.00412604,77526.0,77525.0,0.29496551]
[1744131473874,0.00012604,77526.0,77525.0,0.29496551]
[1744131474037,0.00012604,77526.0,77525.0,0.42122415]
[1744131474975,0.00112604,77526.0,77525.0,0.42122415]
[1744131475169,0.00412604,77526.0,77525.0,0.42122415]
[1744131475513,4e-08,77526.0,77525.0,1.17712415]
[1744131479163,0.000336,77537.0,77536.0,0.270841]
[1744131479363,0.000336,77537.0,77536.0,0.39709964]
[1744131479584,0.000336,77537.0,77536.0,0.41164049]
[1744131480436,0.000336,77537.0,77536.0,0.13915564]
[1744131480652,0.000336,77537.0,77536.0,0.40109964]
[1744131481080,0.000336,77537.0,77536.0,0.41564049]
[1744131481517,0.000336,77537.0,77536.0,0.40409964]
[1744131481725,0.000336,77537.0,77536.0,0.264944]
[1744131481897,0.000336,77537.0,77536.0,0.277841]
[1744131482362,0.000336,77537.0,77536.0,0.40109964]
[1744131482640,0.000336,77537.0,77536.0,0.39709964]
[1744131482842,0.000336,77537.0,77536.0,0.39909964]
[1744131483018,0.000336,77537.0,77536.0,0.39709964]
[1744131483583,0.480574,77537.0,77536.0,0.004]
[1744131484138,0.25801,77517.0,77508.0,0.012901]
[1744131484365,0.25801,77517.0,77512.0,0.258023]
[1744131484508,0.258004,77518.0,77513.0,0.012901]
[1744131484719,0.012899,77521.0,77513.0,0.012901]
[1744131484925,0.0129,77519.0,77513.0,0.012901]
[1744131485291,0.0129,77518.0,77512.0,0.02234119]
[1744131485561,0.25801,77517.0,77514.0,0.258017]
[1744131485797,0.0129,77518.0,77512.0,0.00944019]
[1744131485798,0.012901,77513.0,77512.0,0.00944019]
[1744131486058,0.258018,77516.0,77512.0,0.00944019]
[1744131486337,0.012901,77513.0,77512.0,0.00944019]
[1744131486586,0.270925,77512.0,77511.0,0.00012604]
[1744131486824,0.610925,77512.0,77511.0,0.00012604]
[1744131487052,0.610925,77512.0,77472.0,0.516315]
[1744131487053,0.012906,77483.0,77479.0,0.258133]
[1744131487300,0.012905,77486.0,77481.0,0.00012604]
[1744131487530,0.271033,77482.0,77481.0,0.00012604]
[1744131489471,0.28389618,77482.0,77481.0,0.00012604]
[1744131489742,0.05,77486.0,77481.0,0.00012604]
[1744131489970,0.012904,77495.0,77489.0,0.012905]
[1744131490221,0.012905,77489.0,77482.0,0.12625864]
[1744131490462,0.012905,77486.0,77481.0,0.00012604]
[1744131490702,0.012906,77482.0,77481.0,0.00012604]
[1744131490928,0.012906,77482.0,77481.0,0.00112604]
[1744131491120,0.271026,77486.0,77481.0,0.00112604]
[1744131491419,0.271026,77486.0,77481.0,0.00012604]
[1744131491420,0.271029,77483.0,77481.0,0.00012604]
[1744131491619,0.012906,77482.0,77481.0,0.00012604]
[1744131491969,0.258121,77485.0,77481.0,0.00012604]
[1744131492171,0.015905,77486.0,77484.0,0.271019]
[1744131492172,0.003,77486.0,77484.0,0.271019]
[1744131492510,0.003,77486.0,77485.0,0.012905]
[1744131492746,0.003,77486.0,77485.0,0.13916364]
[1744131492916,0.002,77486.0,77485.0,0.12625864]
[1744131493088,0.014905,77486.0,77485.0,0.12625864]
[1744131493267,0.002,77483.0,77481.0,0.25825304]
[1744131493464,0.002,77483.0,77482.0,0.012906]
[1744131493682,0.012905,77487.0,77482.0,0.271027]
[1744131493895,0.012905,77487.0,77481.0,0.00012604]
[1744131493896,0.258118,77484.0,77481.0,0.00012604]
[1744131494127,0.012906,77482.0,77481.0,0.00012604]
[1744131494349,0.270997,77492.0,77486.0,0.258109]
[1744131494565,0.258123,77483.0,77481.0,0.00012604]
[1744131494819,0.012906,77482.0,77481.0,0.00012604]
[1744131496297,0.014906,77482.0,77481.0,0.00012604]
[1744131496525,0.012904,77491.0,77481.0,0.01303204]
[1744131496727,0.258104,77488.0,77481.0,0.01303204]
[1744131496949,0.260124,77482.0,77481.0,0.00012604]
[1744131497187,0.27303,77482.0,77481.0,0.00012604]
[1744131498447,0.002,77482.0,77481.0,0.00012604]
[1744131499068,0.002,77482.0,77481.0,0.25825304]
[1744131499288,0.258124,77483.0,77481.0,0.00012604]
[1744131499470,0.20344,77490.0,77484.0,0.012905]
[1744131499700,0.258101,77489.0,77485.0,0.012905]
[1744131499888,0.461537,77490.0,77486.0,0.258108]
[1744131500101,0.27103,77482.0,77477.0,0.25814]
[1744131500309,0.27203,77482.0,77467.0,0.012908]
[1744131500506,0.27103,77482.0,77469.0,0.012908]
[1744131500749,0.258122,77483.0,77478.0,0.012906]
[1744131500909,0.258122,77483.0,77479.0,0.258134]
[1744131501107,0.258114,77486.0,77482.0,0.27103]
[1744131501306,0.258111,77486.0,77483.0,0.258121]
[1744131501508,0.20344,77490.0,77482.0,0.012906]
[1744131501718,0.012903,77500.0,77487.0,0.012905]
[1744131501920,0.270983,77496.0,77487.0,0.12625864]
[1744131502169,0.258094,77491.0,77481.0,0.00012604]
[1744131502381,0.27103,77482.0,77481.0,0.00012604]
[1744131502798,0.002,77482.0,77481.0,0.25825304]
[1744131502990,0.27103,77482.0,77481.0,0.00012604]
[1744131503713,0.32003,77482.0,77481.0,0.00012604]
[1744131503901,0.41835386,77482.0,77481.0,0.00012604]
[1744131504132,0.32403,77482.0,77481.0,0.00012604]
[1744131504333,0.004,77482.0,77481.0,0.27115904]
[1744131504869,0.27503,77482.0,77481.0,0.00012604]
[1744131505365,0.27303,77482.0,77481.0,0.00012604]
[1744131505567,0.27503,77482.0,77481.0,0.00012604]
[1744131506429,0.002,77482.0,77481.0,0.25825304]
[1744131506637,0.004,77482.0,77481.0,0.39741768]
[1744131507164,0.002,77482.0,77481.0,0.41195853]
[1744131507542,0.012901,77508.0,77501.0,0.258058]
[1744131507838,0.258048,77505.0,77500.0,0.270967]
[1744131508068,0.012903,77499.0,77492.0,0.258089]
[1744131508273,0.012903,77499.0,77492.0,0.25809]
[1744131508274,0.258074,77497.0,77492.0,0.25809]
[1744131508453,0.63263224,77510.0,77501.0,0.012903]
[1744131508454,0.216341,77510.0,77501.0,0.012903]
[1744131508646,0.258047,77505.0,77500.0,0.012903]
[1744131508803,0.270944,77507.0,77502.0,0.258057]
[1744131509008,0.270944,77507.0,77502.0,0.270959]
[1744131509227,0.012901,77508.0,77503.0,0.258054]
[1744131509446,0.258048,77505.0,77503.0,0.258054]
[1744131509819,0.258048,77505.0,77500.0,0.15302595]
[1744131509994,0.270939,77508.0,77503.0,0.258052]
[1744131510194,0.258041,77507.0,77503.0,0.270954]
[1744131510368,0.258048,77505.0,77503.0,0.002]
[1744131510576,0.258048,77505.0,77503.0,0.001]
[1744131510774,0.610953,77504.0,77503.0,0.001]
[1744131510974,0.78271164,77504.0,77503.0,0.001]
[1744131511494,0.98615164,77504.0,77503.0,0.001]
[1744131511715,0.98615164,77504.0,77481.0,0.00971376]
[1744131511716,0.27103,77482.0,77481.0,0.00971376]
[1744131512107,0.258124,77482.0,77481.0,0.00971376]
[1744131512309,0.27103,77482.0,77481.0,0.00971376]
[1744131513510,0.3794395,77482.0,77481.0,4e-08]
[1744131513744,0.50569814,77482.0,77481.0,4e-08]
[1744131513952,0.50569814,77482.0,77450.0,0.0132468]
[1744131513953,0.611064,77472.0,77452.0,0.258223]
[1744131514161,0.62384913,77472.0,77471.0,0.0008204]
[1744131514362,0.39731945,77472.0,77471.0,0.0008204]
[1744131514576,0.001,77482.0,77473.0,0.27106]
[1744131514785,0.271041,77479.0,77475.0,0.258147]
[1744131514991,0.271041,77479.0,77476.0,0.12625864]
[1744131515196,0.002,77482.0,77479.0,0.258131]
[1744131515447,0.001,77482.0,77480.0,0.12625864]
[1744131515880,0.001,77482.0,77481.0,0.271033]
[1744131516089,0.012904,77495.0,77490.0,0.258094]
[1744131516292,0.258099,77490.0,77485.0,0.012905]
[1744131516626,0.258077,77497.0,77494.0,0.258081]
[1744131516744,0.258087,77493.0,77490.0,0.258095]
[1744131516950,0.258091,77492.0,77489.0,0.2581]
[1744131517150,0.012903,77496.0,77491.0,0.012904]
[1744131517448,0.258088,77493.0,77490.0,0.12625864]
[1744131517563,0.270986,77495.0,77491.0,0.258092]
[1744131517770,0.012904,77494.0,77490.0,0.12625864]
[1744131517969,0.012904,77492.0,77489.0,0.0097471]
[1744131518352,0.271013,77487.0,77485.0,0.001]
[1744131518470,0.271016,77486.0,77485.0,0.001]
[1744131518665,0.271016,77486.0,77479.0,0.258131]
[1744131518666,0.258128,77481.0,77479.0,0.258131]
[1744131518913,0.258121,77483.0,77480.0,0.12625864]
[1744131519236,0.012904,77490.0,77483.0,0.012906]
[1744131519429,0.012904,77490.0,77484.0,0.12625864]
[1744131519430,0.258111,77486.0,77484.0,0.12625864]
[1744131519635,0.258104,77488.0,77485.0,0.258114]
[1744131519834,0.258104,77488.0,77484.0,0.13916364]
[1744131519835,0.258107,77487.0,77484.0,0.12625864]
[1744131520045,0.271037,77480.0,77479.0,0.002]
[1744131520218,0.012905,77484.0,77479.0,0.004]
[1744131520418,0.258131,77480.0,77479.0,0.004]
[1744131520627,0.012905,77484.0,77479.0,0.004]
[1744131520971,0.012904,77490.0,77479.0,0.275039]
[1744131521095,0.012905,77486.0,77479.0,0.273039]
[1744131521298,0.271037,77480.0,77479.0,0.002]
[1744131521791,0.258134,77480.0,77476.0,0.258144]
[1744131521961,0.258117,77485.0,77481.0,0.258127]
[1744131522366,0.258117,77486.0,77482.0,0.258124]
[1744131522572,0.258117,77486.0,77483.0,0.258118]
[1744131522728,0.012904,77492.0,77487.0,0.258106]
[1744131522930,0.012906,77482.0,77479.0,0.12625864]
[1744131523135,0.012906,77482.0,77476.0,0.001]
[1744131523136,0.258138,77478.0,77476.0,0.001]
[1744131523333,0.271047,77479.0,77469.0,0.02265844]
[1744131523334,0.012907,77475.0,77470.0,0.012908]
[1744131523536,0.012906,77482.0,77477.0,0.012907]
[1744131523537,0.258124,77482.0,77477.0,0.012907]
[1744131523743,0.012905,77484.0,77478.0,0.13916464]
[1744131523988,0.258134,77479.0,77478.0,0.12625864]
[1744131524125,0.258146,77476.0,77471.0,0.0137284]
[1744131524337,0.258137,77478.0,77474.0,0.25815]
[1744131524547,0.012907,77477.0,77474.0,0.12625864]
[1744131524770,0.258137,77478.0,77474.0,0.12625864]
[1744131524982,0.0483,77498.0,77492.0,0.012904]
[1744131525187,0.2,77515.0,77497.0,0.012903]
[1744131525188,0.012902,77503.0,77497.0,0.012903]
[1744131525359,0.258064,77500.0,77496.0,0.258076]
[1744131525564,0.258068,77499.0,77495.0,0.25808]
[1744131525807,0.258089,77493.0,77487.0,0.258107]
[1744131526004,0.27101,77488.0,77482.0,0.012906]
[1744131526225,0.271002,77490.0,77483.0,0.12625864]
[1744131526402,0.258105,77488.0,77484.0,0.258117]
[1744131526751,0.258139,77478.0,77473.0,0.012907]
[1744131526898,0.258112,77486.0,77480.0,0.012906]
[1744131527097,0.01303088,77488.0,77480.0,0.012906]
[1744131527098,0.271012,77487.0,77484.0,0.258117]
[1744131527424,0.00012588,77488.0,77485.0,0.12625864]
[1744131527667,0.271016,77486.0,77480.0,0.012906]
[1744131527783,0.25822988,77488.0,77482.0,0.012906]
[1744131527983,0.258107,77487.0,77483.0,0.271027]
[1744131528244,0.00012588,77488.0,77487.0,0.258107]
[1744131528475,0.00012588,77488.0,77487.0,0.39727064]
[1744131529527,0.00012588,77488.0,77487.0,0.41181149]
[1744131529728,0.00012588,77488.0,77487.0,0.42456525]
[1744131530100,0.00012588,77488.0,77487.0,0.76456525]
[1744131531247,0.00012588,77488.0,77487.0,0.77156525]
[1744131531744,0.00112588,77488.0,77487.0,0.77856525]
[1744131532372,0.00112588,77488.0,77487.0,0.014]
[1744131532702,0.00112588,77488.0,77487.0,0.285012]
[1744131533538,0.00112588,77488.0,77487.0,0.40427064]
[1744131533904,0.00112588,77488.0,77487.0,0.42381149]
[1744131534110,0.00112588,77488.0,77487.0,0.41881149]
[1744131534523,0.258067,77499.0,77493.0,0.258085]
[1744131534734,0.258074,77498.0,77494.0,0.38434164]
[1744131535075,0.258072,77498.0,77494.0,0.13916264]
[1744131535248,0.258081,77495.0,77494.0,0.12625864]
[1744131535452,0.258107,77488.0,77484.0,0.01454085]
[1744131535694,0.258104,77488.0,77484.0,0.258116]
[1744131535892,0.258108,77487.0,77483.0,0.258118]
[1744131536095,0.012907,77473.0,77456.0,0.0003352]
[1744131536312,0.271064,77472.0,77463.0,0.012909]
[1744131536534,0.012907,77474.0,77468.0,0.012908]
[1744131536712,0.012906,77482.0,77464.0,0.258183]
[1744131536713,0.2581,77490.0,77475.0,0.012907]
[1744131536912,0.67593888,77500.0,77471.0,0.0008204]
[1744131536913,0.012904,77495.0,77486.0,0.271015]
[1744131537140,0.19764,77497.0,77487.0,0.13916364]
[1744131537518,0.012904,77494.0,77485.0,0.25811]
[1744131537831,0.258111,77486.0,77481.0,0.258125]
[1744131538032,0.012905,77487.0,77479.0,0.258134]
[1744131538033,0.258121,77483.0,77479.0,0.258134]
[1744131538176,0.012906,77481.0,77480.0,0.12625864]
[1744131538568,0.258122,77483.0,77480.0,0.12625864]
[1744131538787,0.271031,77482.0,77480.0,0.12625864]
[1744131538999,0.258126,77482.0,77477.0,0.012907]
[1744131539209,0.271025,77484.0,77471.0,0.2589804]
[1744131539210,0.012903,77497.0,77487.0,0.012905]
[1744131539426,0.258096,77491.0,77486.0,0.25811]
[1744131539636,0.258101,77490.0,77479.0,0.271037]
[1744131539866,0.258083,77495.0,77485.0,0.012905]
[1744131540017,0.012903,77499.0,77491.0,0.012904]
[1744131540293,0.258076,77497.0,77492.0,0.258089]
[1744131540460,0.012904,77493.0,77485.0,0.12625864]
[1744131540801,0.270983,77496.0,77492.0,0.258088]
[1744131540802,0.25808,77496.0,77492.0,0.258088]
[1744131541122,0.01272399,77501.0,77482.0,0.012906]
[1744131541387,0.258091,77492.0,77488.0,0.258104]
[1744131541589,0.258095,77491.0,77487.0,0.258106]
[1744131541792,0.258105,77488.0,77483.0,0.012906]
[1744131542025,0.258098,77490.0,77486.0,0.25811]
[1744131542244,0.271016,77486.0,77481.0,0.271033]
[1744131542463,0.002,77496.0,77486.0,0.012905]
[1744131542715,0.012904,77490.0,77486.0,0.12625864]
[1744131542929,0.258066,77500.0,77489.0,0.012905]
[1744131543148,0.012902,77503.0,77491.0,0.012904]
[1744131543149,0.258078,77496.0,77491.0,0.012904]
[1744131543371,0.258085,77494.0,77491.0,0.258091]
[1744131543597,0.258093,77492.0,77489.0,0.00971709]
[1744131543806,0.271022,77484.0,77483.0,0.003]
[1744131544477,0.012904,77490.0,77483.0,0.003]
[1744131544698,0.271022,77484.0,77483.0,0.003]
[1744131544927,0.012904,77490.0,77484.0,0.012905]
[1744131545135,0.271022,77484.0,77483.0,0.002]
[1744131545408,0.258121,77483.0,77480.0,0.258129]
[1744131545628,0.012905,77488.0,77483.0,0.002]
[1744131545846,0.258114,77486.0,77483.0,0.002]
[1744131546093,0.012905,77487.0,77483.0,0.004]
[1744131546329,0.258117,77484.0,77483.0,0.004]
[1744131546561,0.271022,77484.0,77483.0,0.002]
[1744131546794,0.258124,77483.0,77481.0,0.12625864]
[1744131547017,0.258107,77488.0,77481.0,0.12625864]
[1744131547267,0.012904,77493.0,77485.0,0.271019]
[1744131547523,0.19764,77507.0,77486.0,0.14174447]
[1744131547524,0.012903,77500.0,77486.0,0.14174447]
[1744131547743,0.271009,77488.0,77486.0,0.12625864]
[1744131547993,0.258107,77487.0,77486.0,0.12625864]
[1744131548208,0.2581,77490.0,77486.0,0.12625864]
[1744131548412,0.258102,77489.0,77486.0,0.38436964]
[1744131548632,0.271007,77489.0,77486.0,0.12625864]
[1744131548883,0.271007,77489.0,77486.0,0.12925864]
[1744131549097,0.19764,77507.0,77498.0,0.012903]
[1744131549349,0.258058,77502.0,77499.0,0.258067]
[1744131549611,0.258058,77502.0,77498.0,0.12625864]
[1744131549822,0.012903,77499.0,77498.0,0.12625864]
[1744131550049,0.271012,77487.0,77486.0,0.005]
[1744131550305,0.012904,77490.0,77486.0,0.12925864]
[1744131550306,0.258105,77488.0,77486.0,0.12925864]
[1744131550580,0.271007,77489.0,77487.0,0.12625864]
[1744131550790,0.258098,77490.0,77487.0,0.12625864]
[1744131551041,0.258097,77491.0,77488.0,0.258101]
[1744131551219,0.012904,77494.0,77489.0,0.012905]
[1744131551372,0.258089,77493.0,77489.0,0.39726064]
[1744131551841,0.012904,77494.0,77489.0,0.12625864]
[1744131552025,0.258104,77488.0,77487.0,0.002]
[1744131552177,0.271009,77488.0,77487.0,0.004]
[1744131552637,0.271009,77488.0,77487.0,0.002]
[1744131553067,0.271064,77472.0,77471.0,0.0004]
[1744131553281,0.271064,77472.0,77471.0,0.0008204]
[1744131554531,0.611064,77472.0,77471.0,0.0008204]
[1744131554737,0.611064,77472.0,77471.0,0.0068204]
[1744131554959,0.90280557,77472.0,77471.0,4e-07]
[1744131555397,0.271106,77460.0,77459.0,0.000336]
[1744131555630,0.271106,77460.0,77459.0,0.00046188]
[1744131556055,0.271106,77460.0,77450.0,0.0003358]
[1744131556056,0.352911,77448.0,77447.0,2.2e-07]
[1744131556282,0.67444964,77448.0,77447.0,0.00012646]